[Event "11th LCC Super Blitz KO 2019"]
[Site "London"]
[Date "2019.12.08"]
[Round "2.1"]
[White "Wallace, John Paul"]
[Black "Beinoras, Mindaugas"]
[Result "0-1"]
[ECO "A12"]
[WhiteElo "2344"]
[BlackElo "2350"]
[Annotator "NA"]
[PlyCount "84"]
[EventDate "2019.12.08"]
[EventType "k.o."]
[EventCountry "ENG"]
[SourceTitle "playchess.com"]
[Source "ChessBase"]
[SourceQuality "1"]
[TimeControl "180+2"]

1. Nf3 {[%emt 0:00:00]} d5 {[%emt 0:00:00]} 2. c4 {[%emt 0:00:01]} c6 {[%emt 0:00:03]} 3. e3 {[%emt 0:00:02]} Nf6 {[%emt 0:00:01]} 4. b3 {[%emt 0:00:02]} Bf5 {[%emt 0:00:02]} 5. Bb2 {[%emt 0:00:01]} e6 {[%emt 0:00:01]} 6. g3 {[%emt 0:00:07]} Na6 {[%emt 0:00:13]} 7. cxd5 {[%emt 0:00:12]} Nb4 {[%emt 0:00:21]} 8. d3 {[%emt 0:00:06]} Qxd5 {[%emt 0:00:23]} 9. e4 {[%emt 0:00:45]} Nxe4 {[%emt 0:00:17]} 10. dxe4 {[%emt 0:00:01]} Qxe4+ {[%emt 0:00:14]} 11. Be2 {[%emt 0:00:22]} Rd8 {[%emt 0:00:30]} 12. Nbd2 {[%emt 0:00:53]} Nd3+ {[%emt 0:00:01]} 13. Kf1 {[%emt 0:00:00]} Bh3+ {[%emt 0:00:01]} 14. Kg1 {[%emt 0:00:02]} Nxb2 {[%emt 0:00:03]} 15. Nxe4 {[%emt 0:00:17]} Nxd1 {[%emt 0:00:04]} 16. Rxd1 {[%emt 0:00:02]} Rxd1+ 17. Bxd1 {[%emt 0:00:01]} f6 {[%emt 0:00:11]} 18. Be2 {[%emt 0:00:11]} Bb4 {[%emt 0:00:06]} 19. Bf1 {[%emt 0:00:01]} Bf5 {[%emt 0:00:04]} 20. Ned2 {[%emt 0:00:06]} Ke7 {[%emt 0:00:02]} 21. Nc4 {[%emt 0:00:15]} Rd8 {[%emt 0:00:04]} 22. Ne3 {[%emt 0:00:01]} Bb1 {[%emt 0:00:01]} 23. a4 {[%emt 0:00:05]} Be4 {[%emt 0:00:03]} 24. Be2 {[%emt 0:00:03]} f5 $18 {[%emt 0:00:17]} 25. h4 {[%emt 0:00:05]} Bd3 {[%emt 0:00:04]} 26. Kf1 {[%emt 0:00:05]} Be4 {[%emt 0:00:02]} 27. Rg1 {[%emt 0:00:05]} Bc5 {[%emt 0:00:04]} 28. Ng5 {[%emt 0:00:12]} Bd3 {[%emt 0:00:14]} 29. Nxh7 {[%emt 0:00:00]} b5 {[%emt 0:00:07]} 30. axb5 {[%emt 0:00:00]} cxb5 {[%emt 0:00:00]} 31. Ng5 {[%emt 0:00:00]} a5 {[%emt 0:00:01]} 32. Nf3 {[%emt 0:00:00]} Kf6 {[%emt 0:00:02]} 33. Ng5 {[%emt 0:00:00]} a4 {[%emt 0:00:01]} 34. bxa4 {[%emt 0:00:00]} bxa4 {[%emt 0:00:01]} 35. Bxd3 {[%emt 0:00:00]} Rxd3 {[%emt 0:00:00]} 36. Ke2 {[%emt 0:00:00]} Rb3 {[%emt 0:00:01]} 37. Ra1 {[%emt 0:00:02]} a3 {[%emt 0:00:01]} 38. Nf3 {[%emt 0:00:02]} Rb2+ {[%emt 0:00:01]} 39. Kf1 {[%emt 0:00:03]} e5 {[%emt 0:00:06]} 40. Nc4 {[%emt 0:00:03]} Rxf2+ {[%emt 0:00:05]} 41. Ke1 {[%emt 0:00:01]} Rxf3 {[%emt 0:00:01]} 42. Nxa3 {[%emt 0:00:01]} Bxa3 {[%emt 0:00:01]} 0-1

[Event "11th LCC Super Blitz KO 2019"]
[Site "London"]
[Date "2019.12.08"]
[Round "2.2"]
[White "McShane, Luke J"]
[Black "Speelman, Jon S"]
[Result "0-1"]
[ECO "B12"]
[WhiteElo "2677"]
[BlackElo "2509"]
[Annotator "ChessBase"]
[PlyCount "76"]
[EventDate "2019.12.08"]
[EventType "k.o."]
[EventCountry "ENG"]
[SourceTitle "playchess.com"]
[Source "ChessBase"]
[SourceQuality "1"]
[TimeControl "180+2"]

1. e4 {[%emt 0:00:00]} c6 {[%emt 0:00:00]} 2. d4 {[%emt 0:00:01]} d5 3. e5 Bf5 {[%emt 0:00:01]} 4. h4 {[%emt 0:00:03]} h5 {[%emt 0:00:01]} 5. Bd3 {[%emt 0:00:01]} Bxd3 {[%emt 0:00:01]} 6. Qxd3 {[%emt 0:00:01]} e6 {[%emt 0:00:01]} 7. Nf3 {[%emt 0:00:03]} Nd7 {[%emt 0:00:05]} 8. Bg5 {[%emt 0:00:05]} Qb6 {[%emt 0:00:01]} 9. b3 {[%emt 0:00:07]} Be7 {[%emt 0:00:03]} 10. c4 {[%emt 0:00:05]} Bxg5 {[%emt 0:00:08]} 11. Nxg5 {[%emt 0:00:01]} Ne7 {[%emt 0:00:01]} 12. Nd2 {[%emt 0:00:03]} Nf5 {[%emt 0:00:09]} 13. Ndf3 {[%emt 0:00:14]} Qb4+ {[%emt 0:00:05]} 14. Kf1 {[%emt 0:00:08]} a5 {[%emt 0:00:27]} 15. cxd5 {[%emt 0:00:10]} cxd5 {[%emt 0:00:01]} 16. a3 {[%emt 0:00:01]} Qb6 {[%emt 0:00:02]} 17. Rc1 {[%emt 0:00:02]} Ke7 {[%emt 0:00:04]} 18. g3 {[%emt 0:00:05]} Rhc8 {[%emt 0:00:08]} 19. Kg2 {[%emt 0:00:01]} Rc6 {[%emt 0:00:01]} 20. Nh3 {[%emt 0:00:50]} Rac8 {[%emt 0:00:04]} 21. Rxc6 {[%emt 0:00:02]} Qxc6 {[%emt 0:00:01]} 22. Nf4 {[%emt 0:00:02]} Qc2 {[%emt 0:00:13]} 23. Qb5 {[%emt 0:00:23]} Ne3+ {[%emt 0:00:09]} 24. Kh3 {[%emt 0:00:15]} Qxf2 {[%emt 0:00:11]} 25. Qe2 {[%emt 0:00:32]} Qxe2 {[%emt 0:00:04]} 26. Nxe2 {[%emt 0:00:03]} Rc2 {[%emt 0:00:02]} 27. Nf4 {[%emt 0:00:03]} g6 {[%emt 0:00:01]} 28. Ne1 {[%emt 0:00:14]} Rc3 {[%emt 0:00:02]} 29. b4 {[%emt 0:00:07]} a4 {[%emt 0:00:02]} 30. Ned3 {[%emt 0:00:04]} Nf5 {[%emt 0:00:05]} 31. Rd1 {[%emt 0:00:10]} Nxd4 {[%emt 0:00:16]} 32. Nb2 {[%emt 0:00:00]} Nf5 {[%emt 0:00:02]} 33. Nxa4 {[%emt 0:00:01]} Rxg3+ {[%emt 0:00:01]} 34. Kh2 {[%emt 0:00:01]} Rxa3 {[%emt 0:00:02]} 35. Nc5 {[%emt 0:00:02]} b6 {[%emt 0:00:07]} 36. Ncd3 {[%emt 0:00:01]} Ra2+ {[%emt 0:00:03]} 37. Kh3 {[%emt 0:00:00]} Ra3 {[%emt 0:00:03]} 38. Rc1 {[%emt 0:00:02]} Nxe5 {[%emt 0:00:03]} 0-1

[Event "11th LCC Super Blitz KO 2019"]
[Site "London"]
[Date "2019.12.08"]
[Round "2.2"]
[White "Howell, David W L"]
[Black "McPhillips, Joseph"]
[Result "1-0"]
[ECO "A04"]
[WhiteElo "2676"]
[BlackElo "2434"]
[Annotator "ChessBase"]
[PlyCount "81"]
[EventDate "2019.12.08"]
[EventType "k.o."]
[EventCountry "ENG"]
[SourceTitle "playchess.com"]
[Source "ChessBase"]
[SourceQuality "1"]
[TimeControl "180+2"]

1. Nf3 {[%emt 0:00:00]} f6 {[%emt 0:00:00]} 2. d4 {[%emt 0:00:02]} Kf7 {[%emt 0:00:00]} 3. e4 {[%emt 0:00:02]} g6 {[%emt 0:00:01]} 4. Bd3 {[%emt 0:00:01]} Bh6 {[%emt 0:00:01]} 5. Nbd2 {[%emt 0:00:04]} Kg7 {[%emt 0:00:02]} 6. c3 {[%emt 0:00:02]} d6 {[%emt 0:00:09]} 7. O-O {[%emt 0:00:18]} e5 {[%emt 0:00:00]} 8. Re1 {[%emt 0:00:01]} Nc6 {[%emt 0:00:03]} 9. a3 {[%emt 0:00:03]} a5 {[%emt 0:00:02]} 10. b3 {[%emt 0:00:03]} Nge7 {[%emt 0:00:10]} 11. Bb2 {[%emt 0:00:02]} Rf8 {[%emt 0:00:02]} 12. Nf1 {[%emt 0:00:13]} Kh8 {[%emt 0:00:02]} 13. Qe2 {[%emt 0:00:05]} Bg7 {[%emt 0:00:01]} 14. Rad1 {[%emt 0:00:01]} Bg4 {[%emt 0:00:03]} 15. h3 {[%emt 0:00:07]} Bd7 {[%emt 0:00:02]} 16. Ng3 {[%emt 0:00:05]} Qc8 {[%emt 0:00:04]} 17. Bc2 {[%emt 0:00:12]} Nd8 {[%emt 0:00:01]} 18. c4 {[%emt 0:00:04]} Ne6 {[%emt 0:00:06]} 19. Qe3 {[%emt 0:00:10]} c5 {[%emt 0:00:06]} 20. d5 {[%emt 0:00:34]} Nf4 {[%emt 0:00:11]} 21. Ne2 {[%emt 0:00:11]} g5 {[%emt 0:00:09]} 22. Nh2 {[%emt 0:00:12]} Neg6 {[%emt 0:00:01]} 23. Kh1 {[%emt 0:00:03]} h5 {[%emt 0:00:23]} 24. Nxf4 {[%emt 0:00:20]} Nxf4 {[%emt 0:00:17]} 25. Nf1 {[%emt 0:00:20]} Bh6 {[%emt 0:00:02]} 26. Ng3 {[%emt 0:00:06]} Kh7 {[%emt 0:00:09]} 27. Nf5 {[%emt 0:00:03]} Bxf5 {[%emt 0:00:12]} 28. exf5 {[%emt 0:00:01]} g4 {[%emt 0:00:04]} 29. Qe4 {[%emt 0:00:19]} Rg8 {[%emt 0:00:07]} 30. Re3 {[%emt 0:00:08]} gxh3 {[%emt 0:00:22]} 31. g3 {[%emt 0:00:00]} Ng2 {[%emt 0:00:02]} 32. Re2 {[%emt 0:00:07]} h4 {[%emt 0:00:00]} 33. Qf3 {[%emt 0:00:04]} hxg3 34. fxg3 {[%emt 0:00:01]} Qd7 {[%emt 0:00:45]} 35. Re4 {[%emt 0:00:00]} Rg5 {[%emt 0:00:06]} 36. Rg1 {[%emt 0:00:03]} Rag8 {[%emt 0:00:03]} 37. g4 {[%emt 0:00:00]} Nh4 {[%emt 0:00:06]} 38. Qxh3 {[%emt 0:00:01]} Nxf5 {[%emt 0:00:10]} 39. Ree1 {[%emt 0:00:01]} e4 40. Bxe4 {[%emt 0:00:02]} Kg7 {[%emt 0:00:03]} 41. Bxf5 {[%emt 0:00:02]} 1-0

[Event "11th LCC Super Blitz KO 2019"]
[Site "London"]
[Date "2019.12.08"]
[Round "2.2"]
[White "Moussard, Jules"]
[Black "Vocaturo, Daniele"]
[Result "1-0"]
[ECO "B40"]
[WhiteElo "2598"]
[BlackElo "2627"]
[Annotator "ChessBase"]
[PlyCount "87"]
[EventDate "2019.12.08"]
[EventType "k.o."]
[EventCountry "ENG"]
[SourceTitle "playchess.com"]
[Source "ChessBase"]
[SourceQuality "1"]
[TimeControl "180+2"]

1. e4 {[%emt 0:00:00]} c5 {[%emt 0:00:00]} 2. Nf3 {[%emt 0:00:00]} e6 {[%emt 0:00:01]} 3. g3 {[%emt 0:00:02]} Nc6 {[%emt 0:00:03]} 4. Bg2 {[%emt 0:00:01]} Nf6 {[%emt 0:00:01]} 5. Qe2 {[%emt 0:00:01]} e5 {[%emt 0:00:03]} 6. O-O {[%emt 0:00:03]} Be7 {[%emt 0:00:01]} 7. c3 {[%emt 0:00:03]} O-O {[%emt 0:00:03]} 8. Na3 {[%emt 0:00:00]} Re8 {[%emt 0:00:01]} 9. d3 {[%emt 0:00:01]} Bf8 {[%emt 0:00:02]} 10. Bg5 {[%emt 0:00:03]} h6 {[%emt 0:00:08]} 11. Bxf6 {[%emt 0:00:01]} Qxf6 {[%emt 0:00:01]} 12. Nc2 {[%emt 0:00:02]} d6 {[%emt 0:00:02]} 13. Ne3 {[%emt 0:00:02]} Be6 {[%emt 0:00:02]} 14. a3 {[%emt 0:00:11]} g6 {[%emt 0:00:03]} 15. b4 {[%emt 0:00:01]} h5 {[%emt 0:00:03]} 16. b5 {[%emt 0:00:08]} Ne7 {[%emt 0:00:01]} 17. a4 {[%emt 0:00:01]} Bh6 {[%emt 0:00:05]} 18. Nd2 {[%emt 0:00:02]} Rad8 {[%emt 0:00:07]} 19. a5 {[%emt 0:00:14]} h4 {[%emt 0:00:06]} 20. Ndc4 {[%emt 0:00:11]} hxg3 {[%emt 0:00:03]} 21. fxg3 {[%emt 0:00:13]} Qg7 {[%emt 0:00:06]} 22. Ng4 {[%emt 0:00:10]} Bg5 {[%emt 0:00:09]} 23. h4 {[%emt 0:00:04]} Bxg4 {[%emt 0:00:03]} 24. Qxg4 {[%emt 0:00:01]} Bh6 {[%emt 0:00:02]} 25. Kh2 {[%emt 0:00:14]} f5 {[%emt 0:00:05]} 26. exf5 {[%emt 0:00:02]} gxf5 {[%emt 0:00:02]} 27. Qxg7+ {[%emt 0:00:01]} Bxg7 {[%emt 0:00:07]} 28. Bxb7 {[%emt 0:00:05]} d5 {[%emt 0:00:02]} 29. Ne3 {[%emt 0:00:00]} f4 {[%emt 0:00:02]} 30. Ng4 {[%emt 0:00:10]} Ng6 {[%emt 0:00:03]} 31. b6 {[%emt 0:00:10]} axb6 {[%emt 0:00:05]} 32. a6 {[%emt 0:00:01]} Re7 {[%emt 0:00:08]} 33. h5 {[%emt 0:00:01]} fxg3+ {[%emt 0:00:01]} 34. Kxg3 {[%emt 0:00:01]} Nf4 {[%emt 0:00:02]} 35. h6 {[%emt 0:00:00]} Bh8 {[%emt 0:00:04]} 36. a7 {[%emt 0:00:06]} Rxb7 {[%emt 0:00:02]} 37. a8=Q {[%emt 0:00:01]} Rxa8 {[%emt 0:00:02]} 38. Rxa8+ {[%emt 0:00:01]} Kh7 {[%emt 0:00:02]} 39. d4 {[%emt 0:00:07]} cxd4 {[%emt 0:00:04]} 40. cxd4 {[%emt 0:00:00]} Ne2+ {[%emt 0:00:08]} 41. Kh4 {[%emt 0:00:05]} Nf4 {[%emt 0:00:09]} 42. dxe5 {[%emt 0:00:03]} Ng6+ {[%emt 0:00:02]} 43. Kh5 {[%emt 0:00:01]} Re7 {[%emt 0:00:05]} 44. Rxh8+ {[%emt 0:00:06]} 1-0

[Event "11th LCC Super Blitz KO 2019"]
[Site "London"]
[Date "2019.12.08"]
[Round "2.2"]
[White "Grover, Sahaj"]
[Black "Gharamian, Tigran"]
[Result "0-1"]
[ECO "B17"]
[WhiteElo "2508"]
[BlackElo "2603"]
[Annotator "ChessBase"]
[PlyCount "184"]
[EventDate "2019.12.08"]
[EventType "k.o."]
[EventCountry "ENG"]
[SourceTitle "playchess.com"]
[Source "ChessBase"]
[SourceQuality "1"]
[TimeControl "180+2"]

1. e4 {[%emt 0:00:00]} c6 {[%emt 0:00:00]} 2. d4 {[%emt 0:00:06]} d5 {[%emt 0:00:00]} 3. Nd2 {[%emt 0:00:01]} dxe4 {[%emt 0:00:01]} 4. Nxe4 {[%emt 0:00:01]} Nd7 {[%emt 0:00:02]} 5. Nf3 {[%emt 0:00:06]} Ngf6 {[%emt 0:00:02]} 6. Nxf6+ {[%emt 0:00:01]} Nxf6 {[%emt 0:00:01]} 7. Bc4 {[%emt 0:00:01]} Bf5 {[%emt 0:00:08]} 8. O-O {[%emt 0:00:10]} e6 {[%emt 0:00:02]} 9. a4 {[%emt 0:00:01]} a5 {[%emt 0:00:08]} 10. c3 {[%emt 0:00:02]} Bd6 {[%emt 0:00:06]} 11. Bg5 {[%emt 0:00:12]} O-O {[%emt 0:00:03]} 12. Re1 {[%emt 0:00:07]} Be7 {[%emt 0:00:12]} 13. h3 {[%emt 0:00:07]} h6 {[%emt 0:00:21]} 14. Bf4 {[%emt 0:00:06]} Nd5 {[%emt 0:00:03]} 15. Bh2 {[%emt 0:00:07]} Qb6 {[%emt 0:00:11]} 16. Qe2 {[%emt 0:00:20]} Rfe8 {[%emt 0:00:02]} 17. Ne5 {[%emt 0:00:02]} Bf6 {[%emt 0:00:24]} 18. Nd7 {[%emt 0:00:56]} Qd8 {[%emt 0:00:01]} 19. Nc5 {[%emt 0:00:10]} Qb6 {[%emt 0:00:02]} 20. Ra3 {[%emt 0:00:06]} Qa7 {[%emt 0:00:09]} 21. Rb3 {[%emt 0:00:13]} b6 {[%emt 0:00:01]} 22. Nd3 {[%emt 0:00:04]} Rad8 {[%emt 0:00:13]} 23. Ne5 {[%emt 0:00:01]} Bxe5 {[%emt 0:00:03]} 24. Bxe5 {[%emt 0:00:02]} Bg6 {[%emt 0:00:10]} 25. Qg4 {[%emt 0:00:04]} Kh7 {[%emt 0:00:15]} 26. Bd3 {[%emt 0:00:02]} Ne7 {[%emt 0:00:15]} 27. h4 {[%emt 0:00:04]} f6 {[%emt 0:00:05]} 28. Bxg6+ {[%emt 0:00:07]} Nxg6 {[%emt 0:00:01]} 29. Bg3 {[%emt 0:00:04]} f5 {[%emt 0:00:02]} 30. Qf3 {[%emt 0:00:03]} f4 {[%emt 0:00:04]} 31. Bh2 {[%emt 0:00:01]} Rd5 {[%emt 0:00:05]} 32. h5 {[%emt 0:00:02]} Nh4 {[%emt 0:00:17]} 33. Qg4 {[%emt 0:00:07]} Qe7 {[%emt 0:00:19]} 34. Bxf4 {[%emt 0:00:06]} b5 {[%emt 0:00:05]} 35. axb5 {[%emt 0:00:04]} cxb5 36. Re5 {[%emt 0:00:12]} Rxe5 {[%emt 0:00:13]} 37. Bxe5 {[%emt 0:00:01]} b4 {[%emt 0:00:01]} 38. cxb4 {[%emt 0:00:03]} axb4 {[%emt 0:00:00]} 39. Rg3 {[%emt 0:00:06]} Nf5 {[%emt 0:00:01]} 40. Qg6+ {[%emt 0:00:01]} Kg8 {[%emt 0:00:02]} 41. Rf3 {[%emt 0:00:06]} Nh4 {[%emt 0:00:02]} 42. Qg4 {[%emt 0:00:04]} Nxf3+ {[%emt 0:00:01]} 43. Qxf3 {[%emt 0:00:01]} Qf7 {[%emt 0:00:02]} 44. Qg4 {[%emt 0:00:03]} b3 {[%emt 0:00:02]} 45. f3 {[%emt 0:00:02]} Rd8 {[%emt 0:00:03]} 46. Kh2 {[%emt 0:00:03]} Rd7 {[%emt 0:00:01]} 47. Kg3 {[%emt 0:00:02]} Ra7 {[%emt 0:00:03]} 48. Kh4 {[%emt 0:00:03]} Rd7 {[%emt 0:00:02]} 49. Qe4 {[%emt 0:00:01]} Qf5 {[%emt 0:00:01]} 50. Qa8+ {[%emt 0:00:03]} Kh7 {[%emt 0:00:01]} 51. g4 {[%emt 0:00:01]} Qf7 {[%emt 0:00:02]} 52. Qe4+ {[%emt 0:00:01]} Kg8 {[%emt 0:00:01]} 53. Qa8+ {[%emt 0:00:01]} Qf8 {[%emt 0:00:01]} 54. Qc6 {[%emt 0:00:01]} Qe7+ {[%emt 0:00:02]} 55. Kg3 {[%emt 0:00:01]} Ra7 {[%emt 0:00:04]} 56. Qc8+ {[%emt 0:00:01]} Kh7 {[%emt 0:00:00]} 57. Qc6 {[%emt 0:00:01]} Qf7 {[%emt 0:00:05]} 58. Qe4+ {[%emt 0:00:01]} Kg8 {[%emt 0:00:00]} 59. Qc6 {[%emt 0:00:02]} Rd7 {[%emt 0:00:03]} 60. Qa8+ {[%emt 0:00:01]} Qf8 {[%emt 0:00:00]} 61. Qc6 {[%emt 0:00:02]} Qe8 {[%emt 0:00:02]} 62. Qb5 {[%emt 0:00:02]} Qf7 {[%emt 0:00:07]} 63. Qb8+ {[%emt 0:00:02]} Kh7 {[%emt 0:00:01]} 64. Qxb3 {[%emt 0:00:01]} Rd8 {[%emt 0:00:01]} 65. Qd3+ {[%emt 0:00:01]} Kg8 {[%emt 0:00:01]} 66. b4 {[%emt 0:00:01]} Qb7 {[%emt 0:00:02]} 67. Qg6 {[%emt 0:00:04]} Qd7 {[%emt 0:00:06]} 68. b5 {[%emt 0:00:02]} Rf8 {[%emt 0:00:06]} 69. b6 {[%emt 0:00:03]} Rf7 70. Qe4 {[%emt 0:00:03]} Re7 {[%emt 0:00:02]} 71. Qa8+ {[%emt 0:00:02]} Kh7 {[%emt 0:00:01]} 72. Qe4+ Kg8 73. Qc2 {[%emt 0:00:05]} Qb7 {[%emt 0:00:02]} 74. Qc5 {[%emt 0:00:03]} Rf7 {[%emt 0:00:02]} 75. f4 {[%emt 0:00:03]} Qh1 {[%emt 0:00:04]} 76. Qc8+ {[%emt 0:00:02]} Kh7 77. Qc2+ Kg8 78. Qc8+ {[%emt 0:00:03]} Kh7 {[%emt 0:00:01]} 79. Qc2+ {[%emt 0:00:01]} Kg8 {[%emt 0:00:00]} 80. Qg2 {[%emt 0:00:06]} Qe1+ {[%emt 0:00:02]} 81. Qf2 {[%emt 0:00:01]} Qc3+ {[%emt 0:00:02]} 82. Qf3 {[%emt 0:00:02]} Qe1+ {[%emt 0:00:01]} 83. Kh3 {[%emt 0:00:02]} Qb1 {[%emt 0:00:01]} 84. Bc7 {[%emt 0:00:03]} Qc2 {[%emt 0:00:04]} 85. Qa8+ {[%emt 0:00:02]} Kh7 86. Qf3 {[%emt 0:00:02]} Kg8 {[%emt 0:00:03]} 87. Bd6 {[%emt 0:00:01]} Qb1 {[%emt 0:00:03]} 88. Bc5 {[%emt 0:00:02]} Kh7 {[%emt 0:00:01]} 89. Qc6 {[%emt 0:00:03]} Qf1+ {[%emt 0:00:02]} 90. Qg2 {[%emt 0:00:01]} Qxf4 {[%emt 0:00:04]} 91. Qc2+ {[%emt 0:00:04]} Kg8 {[%emt 0:00:01]} 92. Qd3 {[%emt 0:00:02]} Qf2 {[%emt 0:00:01]} 0-1

[Event "11th LCC Super Blitz KO 2019"]
[Site "London"]
[Date "2019.12.08"]
[Round "2.2"]
[White "Gormally, Daniel W"]
[Black "Turner, Matthew J"]
[Result "1-0"]
[ECO "D15"]
[WhiteElo "2497"]
[BlackElo "2519"]
[Annotator "ChessBase"]
[PlyCount "47"]
[EventDate "2019.12.08"]
[EventType "k.o."]
[EventCountry "ENG"]
[SourceTitle "playchess.com"]
[Source "ChessBase"]
[SourceQuality "1"]
[TimeControl "180+2"]

1. d4 {[%emt 0:00:00]} d5 {[%emt 0:00:00]} 2. c4 {[%emt 0:00:00]} c6 {[%emt 0:00:00]} 3. Nf3 {[%emt 0:00:01]} Nf6 {[%emt 0:00:00]} 4. Nc3 {[%emt 0:00:00]} dxc4 {[%emt 0:00:05]} 5. e4 {[%emt 0:00:01]} Bg4 {[%emt 0:00:05]} 6. Bxc4 {[%emt 0:00:08]} e6 {[%emt 0:00:01]} 7. O-O {[%emt 0:00:15]} Bxf3 8. gxf3 {[%emt 0:00:01]} Nbd7 {[%emt 0:00:17]} 9. Be3 {[%emt 0:00:03]} Be7 {[%emt 0:00:03]} 10. Kh1 {[%emt 0:00:02]} O-O {[%emt 0:00:07]} 11. f4 {[%emt 0:00:11]} c5 {[%emt 0:00:11]} 12. e5 {[%emt 0:00:20]} Nd5 {[%emt 0:00:33]} 13. Nxd5 {[%emt 0:00:20]} exd5 {[%emt 0:00:01]} 14. Bxd5 {[%emt 0:00:01]} Nb6 {[%emt 0:00:12]} 15. Be4 {[%emt 0:00:13]} Nd5 {[%emt 0:00:24]} 16. Qf3 {[%emt 0:00:21]} Nxe3 {[%emt 0:00:12]} 17. fxe3 {[%emt 0:00:01]} cxd4 {[%emt 0:00:01]} 18. Rad1 {[%emt 0:00:01]} d3 {[%emt 0:00:13]} 19. Rxd3 {[%emt 0:00:01]} Qa5 {[%emt 0:00:00]} 20. Rd7 {[%emt 0:00:10]} Bc5 {[%emt 0:00:10]} 21. e6 {[%emt 0:00:05]} Qxa2 {[%emt 0:00:51]} 22. exf7+ {[%emt 0:00:07]} Kh8 {[%emt 0:00:01]} 23. Qh5 {[%emt 0:00:07]} Qxb2 {[%emt 0:00:16]} 24. Qxh7# {[%emt 0:00:04]} 1-0

[Event "11th LCC Super Blitz KO 2019"]
[Site "London"]
[Date "2019.12.08"]
[Round "2.2"]
[White "Harvey, Marcus R"]
[Black "Rendle, Thomas E"]
[Result "0-1"]
[ECO "C01"]
[WhiteElo "2412"]
[BlackElo "2361"]
[Annotator "NA"]
[PlyCount "134"]
[EventDate "2019.12.08"]
[EventType "k.o."]
[EventCountry "ENG"]
[SourceTitle "playchess.com"]
[Source "ChessBase"]
[SourceQuality "1"]
[TimeControl "180+2"]

1. e4 {[%emt 0:00:00]} e6 {[%emt 0:00:00]} 2. d4 {[%emt 0:00:00]} d5 {[%emt 0:00:00]} 3. exd5 {[%emt 0:00:00]} exd5 {[%emt 0:00:00]} 4. Bd3 {[%emt 0:00:02]} Bd6 {[%emt 0:00:00]} 5. Nf3 {[%emt 0:00:01]} Ne7 {[%emt 0:00:01]} 6. O-O {[%emt 0:00:07]} O-O {[%emt 0:00:01]} 7. h3 {[%emt 0:00:03]} Bf5 {[%emt 0:00:04]} 8. Bxf5 {[%emt 0:00:02]} Nxf5 {[%emt 0:00:02]} 9. Qd3 Qd7 {[%emt 0:00:14]} 10. Nc3 {[%emt 0:00:02]} c6 {[%emt 0:00:03]} 11. Ne2 {[%emt 0:00:01]} Na6 {[%emt 0:00:03]} 12. c3 {[%emt 0:00:03]} Rae8 {[%emt 0:00:02]} 13. Bf4 {[%emt 0:00:05]} Bxf4 {[%emt 0:00:25]} 14. Nxf4 {[%emt 0:00:02]} Re4 {[%emt 0:00:01]} 15. Ne2 {[%emt 0:00:08]} f6 {[%emt 0:00:10]} 16. Nd2 {[%emt 0:00:10]} Re7 {[%emt 0:00:03]} 17. Nf4 {[%emt 0:00:16]} Rfe8 {[%emt 0:00:02]} 18. Qf3 {[%emt 0:00:05]} Nc7 {[%emt 0:00:05]} 19. Nb3 {[%emt 0:00:05]} b6 {[%emt 0:00:01]} 20. Nd3 {[%emt 0:00:06]} Re4 {[%emt 0:00:16]} 21. Rae1 {[%emt 0:00:17]} Nb5 {[%emt 0:00:37]} 22. Nd2 {[%emt 0:00:06]} Nbd6 {[%emt 0:00:04]} 23. Qd1 {[%emt 0:00:16]} R4e7 {[%emt 0:00:04]} 24. Rxe7 {[%emt 0:00:02]} Rxe7 {[%emt 0:00:02]} 25. Re1 {[%emt 0:00:03]} Ne4 {[%emt 0:00:01]} 26. Nxe4 {[%emt 0:00:06]} dxe4 {[%emt 0:00:03]} 27. Nb4 {[%emt 0:00:05]} a5 {[%emt 0:00:13]} 28. Nc2 {[%emt 0:00:01]} Qd5 {[%emt 0:00:06]} 29. Qb1 {[%emt 0:00:09]} Nd6 {[%emt 0:00:06]} 30. Ne3 {[%emt 0:00:01]} Qg5 {[%emt 0:00:01]} 31. b4 {[%emt 0:00:09]} a4 {[%emt 0:00:06]} 32. c4 {[%emt 0:00:02]} f5 {[%emt 0:00:05]} 33. c5 {[%emt 0:00:03]} bxc5 {[%emt 0:00:02]} 34. bxc5 {[%emt 0:00:01]} Nb5 {[%emt 0:00:01]} 35. d5 {[%emt 0:00:02]} f4 {[%emt 0:00:04]} 36. d6 {[%emt 0:00:06]} Rf7 {[%emt 0:00:09]} 37. Ng4 {[%emt 0:00:18]} h5 {[%emt 0:00:06]} 38. Qxe4 {[%emt 0:00:10]} hxg4 {[%emt 0:00:05]} 39. Qxc6 {[%emt 0:00:38]} gxh3 {[%emt 0:00:12]} 40. Re8+ {[%emt 0:00:01]} Kh7 {[%emt 0:00:01]} 41. Qe4+ {[%emt 0:00:01]} g6 {[%emt 0:00:07]} 42. Qf3 {[%emt 0:00:13]} hxg2 {[%emt 0:00:09]} 43. Qxg2 {[%emt 0:00:08]} Qxc5 {[%emt 0:00:09]} 44. Qh1+ {[%emt 0:00:05]} Qh5 {[%emt 0:00:02]} 45. Qa8 {[%emt 0:00:01]} Qg4+ {[%emt 0:00:04]} 46. Kf1 {[%emt 0:00:01]} Qd1+ {[%emt 0:00:03]} 47. Kg2 {[%emt 0:00:01]} f3+ {[%emt 0:00:05]} 48. Kh2 {[%emt 0:00:05]} Qxd6+ {[%emt 0:00:02]} 49. Kg1 {[%emt 0:00:01]} Qd1+ {[%emt 0:00:03]} 50. Kh2 {[%emt 0:00:01]} Qd6+ {[%emt 0:00:01]} 51. Kg1 {[%emt 0:00:00]} Qf6 {[%emt 0:00:01]} 52. Qc8 {[%emt 0:00:06]} Qg5+ {[%emt 0:00:02]} 53. Kf1 {[%emt 0:00:01]} Qg2+ {[%emt 0:00:01]} 54. Ke1 {[%emt 0:00:01]} Qg1+ {[%emt 0:00:01]} 55. Kd2 {[%emt 0:00:00]} Qxf2+ {[%emt 0:00:01]} 56. Kd3 {[%emt 0:00:01]} Qd4+ {[%emt 0:00:05]} 57. Kc2 {[%emt 0:00:02]} Qf2+ {[%emt 0:00:08]} 58. Kd3 {[%emt 0:00:01]} Qd4+ {[%emt 0:00:01]} 59. Kc2 Na3+ {[%emt 0:00:03]} 60. Kc1 {[%emt 0:00:01]} Qg1+ {[%emt 0:00:03]} 61. Kd2 {[%emt 0:00:01]} Qf2+ {[%emt 0:00:01]} 62. Kd3 {[%emt 0:00:01]} Qf1+ {[%emt 0:00:01]} 63. Kd4 {[%emt 0:00:04]} Qd1+ {[%emt 0:00:02]} 64. Ke5 {[%emt 0:00:03]} Qe2+ {[%emt 0:00:02]} 65. Kd6 {[%emt 0:00:02]} Qd3+ {[%emt 0:00:01]} 66. Ke6 {[%emt 0:00:01]} Qf5+ {[%emt 0:00:01]} 67. Kd6 {[%emt 0:00:00]} Qxc8 {[%emt 0:00:02]} 0-1